[Event "*** Titled Tuesday Blitz"]
[Site "Chess.com"]
[Date "2020.11.24"]
[Round "11"]
[White "Alexander_Kachko"]
[Black "TrickyFortem"]
[Result "1-0"]
[WhiteElo "2789"]
[BlackElo "2537"]
[TimeControl "180+1"]
[EndTime "12:24:33 PST"]
[Termination "Alexander_Kachko won on time"]

1. e4 {[%clk 0:03:00.9]} 1... c6 {[%clk 0:02:58.7]} 2. d4 {[%clk 0:03:00.3]}
2... g6 {[%clk 0:02:58.7]} 3. c3 {[%clk 0:02:57.8]} 3... Bg7 {[%clk 0:02:58.6]}
4. Be3 {[%clk 0:02:57]} 4... d5 {[%clk 0:02:58.6]} 5. e5 {[%clk 0:02:50.4]} 5...
Nh6 {[%clk 0:02:58.8]} 6. h3 {[%clk 0:02:30.1]} 6... Nf5 {[%clk 0:02:43.2]} 7.
Nf3 {[%clk 0:02:27]} 7... Nxe3 {[%clk 0:02:38.7]} 8. fxe3 {[%clk 0:02:26.4]}
8... f6 {[%clk 0:02:32.2]} 9. exf6 {[%clk 0:02:25.2]} 9... exf6 {[%clk
0:02:28.1]} 10. Nbd2 {[%clk 0:02:24.2]} 10... O-O {[%clk 0:02:26.8]} 11. Bd3
{[%clk 0:02:22.2]} 11... Qe7 {[%clk 0:02:25.1]} 12. Kf2 {[%clk 0:02:20.4]} 12...
f5 {[%clk 0:02:19.3]} 13. Re1 {[%clk 0:02:18]} 13... Nd7 {[%clk 0:02:19.3]} 14.
Kg1 {[%clk 0:02:08.6]} 14... Nf6 {[%clk 0:02:19.1]} 15. Ne5 {[%clk 0:02:03.9]}
15... Ne4 {[%clk 0:02:18]} 16. Nef3 {[%clk 0:01:29]} 16... Be6 {[%clk 0:02:10]}
17. Rc1 {[%clk 0:01:23.8]} 17... Rae8 {[%clk 0:02:02.7]} 18. c4 {[%clk
0:01:23.4]} 18... Ng3 {[%clk 0:01:58.2]} 19. cxd5 {[%clk 0:01:19.2]} 19... Bxd5
{[%clk 0:01:58.4]} 20. Bc4 {[%clk 0:01:19.3]} 20... Bxc4 {[%clk 0:01:50.3]} 21.
Nxc4 {[%clk 0:01:20.2]} 21... f4 {[%clk 0:01:37.5]} 22. Nce5 {[%clk 0:01:13.8]}
22... Bxe5 {[%clk 0:01:26.7]} 23. dxe5 {[%clk 0:01:08.7]} 23... fxe3 {[%clk
0:01:26.3]} 24. Qb3+ {[%clk 0:01:06.6]} 24... Kg7 {[%clk 0:01:25.8]} 25. Rxe3
{[%clk 0:01:04.1]} 25... Rf4 {[%clk 0:01:18.7]} 26. Rd1 {[%clk 0:00:59.7]} 26...
Qc5 {[%clk 0:00:55.3]} 27. Kh2 {[%clk 0:00:51.7]} 27... Ne4 {[%clk 0:00:40]} 28.
Rd7+ {[%clk 0:00:50.6]} 28... Kh6 {[%clk 0:00:38.8]} 29. Qd3 {[%clk 0:00:44.6]}
29... Nf2 {[%clk 0:00:14.9]} 30. Qd2 {[%clk 0:00:38.4]} 30... g5 {[%clk
0:00:02]} 31. Qxf2 {[%clk 0:00:32.7]} 31... Rxe5 {[%clk 0:00:02.2]} 32. Rxe5
{[%clk 0:00:18.5]} 1-0

[Event "*** Titled Tuesday Blitz"]
[Site "Chess.com"]
[Date "2020.11.24"]
[Round "11"]
[White "enriquebutti"]
[Black "mortngabriel"]
[Result "1-0"]
[WhiteElo "2028"]
[BlackElo "2355"]
[TimeControl "180+1"]
[EndTime "12:24:33 PST"]
[Termination "enriquebutti won by resignation"]

1. d4 {[%clk 0:02:59.5]} 1... Nf6 {[%clk 0:02:56.4]} 2. Nf3 {[%clk 0:02:58.6]}
2... d6 {[%clk 0:02:54.1]} 3. c4 {[%clk 0:02:54.3]} 3... Bg4 {[%clk 0:02:47.6]}
4. Nc3 {[%clk 0:02:53.7]} 4... Nbd7 {[%clk 0:02:38.4]} 5. g3 {[%clk 0:02:47.6]}
5... e5 {[%clk 0:02:35.6]} 6. Bg2 {[%clk 0:02:39.9]} 6... c6 {[%clk 0:02:35.5]}
7. h3 {[%clk 0:02:33.1]} 7... Bh5 {[%clk 0:02:33.4]} 8. O-O {[%clk 0:02:32.2]}
8... Be7 {[%clk 0:02:31.4]} 9. Nh4 {[%clk 0:02:31.4]} 9... Bg6 {[%clk
0:02:26.8]} 10. Nxg6 {[%clk 0:02:30.4]} 10... hxg6 {[%clk 0:02:26.1]} 11. e4
{[%clk 0:02:30.1]} 11... a6 {[%clk 0:02:13.2]} 12. Be3 {[%clk 0:02:28.1]} 12...
b5 {[%clk 0:02:10.7]} 13. d5 {[%clk 0:02:20.8]} 13... b4 {[%clk 0:01:55.1]} 14.
dxc6 {[%clk 0:02:19.7]} 14... bxc3 {[%clk 0:01:54.1]} 15. cxd7+ {[%clk
0:02:19.1]} 15... Qxd7 {[%clk 0:01:44]} 16. b3 {[%clk 0:02:18.6]} 16... Rxh3
{[%clk 0:01:20.1]} 17. Bxh3 {[%clk 0:02:17.8]} 17... Qxh3 {[%clk 0:01:21]} 18.
Qf3 {[%clk 0:02:17.2]} 18... Ng4 {[%clk 0:00:52]} 19. Rfc1 {[%clk 0:02:16.4]}
19... Qh2+ {[%clk 0:00:26.7]} 20. Kf1 {[%clk 0:02:15.6]} 20... d5 {[%clk
0:00:22]} 21. Qxg4 {[%clk 0:02:05.7]} 21... d4 {[%clk 0:00:22.1]} 22. Bg5 {[%clk
0:02:05.3]} 22... d3 {[%clk 0:00:18.6]} 23. Qf3 {[%clk 0:01:57.5]} 23... Bxg5
{[%clk 0:00:13.8]} 24. Rxc3 {[%clk 0:01:56.8]} 24... d2 {[%clk 0:00:13.3]} 25.
Rd1 {[%clk 0:01:56]} 25... Rd8 {[%clk 0:00:12.8]} 26. Ke2 {[%clk 0:01:55.5]}
26... f6 {[%clk 0:00:11.3]} 27. Rd3 {[%clk 0:01:54.6]} 27... Rxd3 {[%clk
0:00:09.8]} 28. Qxd3 {[%clk 0:01:51.6]} 28... Qh5+ {[%clk 0:00:10]} 29. Qf3
{[%clk 0:01:50.5]} 29... Qh3 {[%clk 0:00:10.2]} 30. Rxd2 {[%clk 0:01:46]} 30...
Bxd2 {[%clk 0:00:09.4]} 31. Kxd2 {[%clk 0:01:45.8]} 31... Qd7+ {[%clk
0:00:10.3]} 32. Qd3 {[%clk 0:01:45.2]} 32... Qb7 {[%clk 0:00:10.8]} 33. Qd5
{[%clk 0:01:44.5]} 33... Qb4+ {[%clk 0:00:10.6]} 34. Kc2 {[%clk 0:01:43.6]}
34... Ke7 {[%clk 0:00:10.8]} 35. c5 {[%clk 0:01:40.5]} 35... Qa5 {[%clk
0:00:07.8]} 36. a4 {[%clk 0:01:38.6]} 36... Qc7 {[%clk 0:00:07]} 37. c6 {[%clk
0:01:37.5]} 37... a5 {[%clk 0:00:05]} 38. Qc5+ {[%clk 0:01:35.7]} 38... Ke6
{[%clk 0:00:05]} 39. Qd5+ {[%clk 0:01:35.1]} 39... Ke7 {[%clk 0:00:05.2]} 40.
Kd3 {[%clk 0:01:35]} 40... f5 {[%clk 0:00:04.5]} 41. Kc4 {[%clk 0:01:33.2]}
41... f4 {[%clk 0:00:03.3]} 42. g4 {[%clk 0:01:31.2]} 42... g5 {[%clk
0:00:03.1]} 43. Qd7+ {[%clk 0:01:24.8]} 43... Qxd7 {[%clk 0:00:02.9]} 44. cxd7
{[%clk 0:01:24.4]} 44... Kxd7 {[%clk 0:00:03.8]} 45. Kd5 {[%clk 0:01:24.8]}
45... Kc7 {[%clk 0:00:02.5]} 46. Kxe5 {[%clk 0:01:24.6]} 46... Kc6 {[%clk
0:00:02.6]} 47. Kd4 {[%clk 0:01:24]} 47... Kd6 {[%clk 0:00:02.1]} 48. e5+ {[%clk
0:01:23]} 48... Ke6 {[%clk 0:00:02.1]} 49. Ke4 {[%clk 0:01:22.8]} 1-0

[Event "*** Titled Tuesday Blitz"]
[Site "Chess.com"]
[Date "2020.11.24"]
[Round "11"]
[White "dretch"]
[Black "GigaQuparadze"]
[Result "0-1"]
[WhiteElo "2819"]
[BlackElo "2876"]
[TimeControl "180+1"]
[EndTime "12:24:37 PST"]
[Termination "GigaQuparadze won by resignation"]

1. d4 {[%clk 0:03:00.7]} 1... Nf6 {[%clk 0:02:59.8]} 2. c4 {[%clk 0:03:00]} 2...
e6 {[%clk 0:03:00.1]} 3. Nc3 {[%clk 0:03:00.4]} 3... Bb4 {[%clk 0:02:59.5]} 4.
Qc2 {[%clk 0:03:00.4]} 4... Nc6 {[%clk 0:02:58.6]} 5. Nf3 {[%clk 0:02:59.9]}
5... d6 {[%clk 0:02:58.3]} 6. Bd2 {[%clk 0:02:59]} 6... O-O {[%clk 0:02:57.5]}
7. a3 {[%clk 0:02:58.2]} 7... Ba5 {[%clk 0:02:57.1]} 8. b4 {[%clk 0:02:51.4]}
8... Nxb4 {[%clk 0:02:56.6]} 9. axb4 {[%clk 0:02:51.4]} 9... Bxb4 {[%clk
0:02:57.5]} 10. e3 {[%clk 0:02:42.6]} 10... b6 {[%clk 0:02:54.4]} 11. Bd3 {[%clk
0:02:39.4]} 11... Bb7 {[%clk 0:02:54.1]} 12. Ne4 {[%clk 0:02:39.6]} 12... Bxd2+
{[%clk 0:02:52.1]} 13. Nfxd2 {[%clk 0:02:39.9]} 13... h6 {[%clk 0:02:52.2]} 14.
O-O {[%clk 0:02:38.3]} 14... Nd7 {[%clk 0:02:52.2]} 15. Nc3 {[%clk 0:02:34]}
15... a5 {[%clk 0:02:51.3]} 16. Bh7+ {[%clk 0:02:32]} 16... Kh8 {[%clk 0:02:51]}
17. Be4 {[%clk 0:02:32.9]} 17... c6 {[%clk 0:02:51.4]} 18. f4 {[%clk 0:02:31.3]}
18... d5 {[%clk 0:02:51.6]} 19. Bf3 {[%clk 0:02:27.7]} 19... dxc4 {[%clk
0:02:51.3]} 20. Nxc4 {[%clk 0:02:23.9]} 20... Ba6 {[%clk 0:02:41.9]} 21. Ne2
{[%clk 0:02:23.3]} 21... Rc8 {[%clk 0:02:37.6]} 22. Rfd1 {[%clk 0:02:21.8]}
22... Nf6 {[%clk 0:02:34.6]} 23. e4 {[%clk 0:02:12.5]} 23... Nd5 {[%clk
0:02:33.2]} 24. Rac1 {[%clk 0:02:05.2]} 24... Bxc4 {[%clk 0:02:32.4]} 25. exd5
{[%clk 0:01:51.3]} 25... cxd5 {[%clk 0:02:33.3]} 26. Qd2 {[%clk 0:01:47.6]}
26... b5 {[%clk 0:02:33.2]} 27. Ng3 {[%clk 0:01:45.9]} 27... b4 {[%clk
0:02:31.5]} 28. f5 {[%clk 0:01:46.1]} 28... b3 {[%clk 0:02:09.7]} 29. Ra1 {[%clk
0:01:38.8]} 29... Ra8 {[%clk 0:02:06.3]} 30. Re1 {[%clk 0:01:06.6]} 30... a4
{[%clk 0:01:29.3]} 31. fxe6 {[%clk 0:01:02]} 31... fxe6 {[%clk 0:01:30.2]} 32.
Rxe6 {[%clk 0:01:02]} 32... Rf6 {[%clk 0:01:30.3]} 33. Rxf6 {[%clk 0:00:30]}
33... Qxf6 {[%clk 0:01:31.2]} 34. Ra3 {[%clk 0:00:28.8]} 34... Rb8 {[%clk
0:01:21.6]} 35. Qb2 {[%clk 0:00:20.2]} 35... Qf4 {[%clk 0:01:20.7]} 36. Nf1
{[%clk 0:00:17.5]} 36... Re8 {[%clk 0:01:08.6]} 37. Qd2 {[%clk 0:00:17.4]} 37...
Qh4 {[%clk 0:01:00.6]} 38. Ng3 {[%clk 0:00:15.3]} 38... Bb5 {[%clk 0:00:55.8]}
39. Bd1 {[%clk 0:00:12.9]} 39... Qe7 {[%clk 0:00:53.4]} 40. Bxb3 {[%clk
0:00:12.8]} 40... Qxa3 {[%clk 0:00:52.7]} 41. Bxd5 {[%clk 0:00:13.2]} 41... Qe3+
{[%clk 0:00:52]} 42. Qxe3 {[%clk 0:00:13.3]} 42... Rxe3 {[%clk 0:00:52.9]} 43.
Nf5 {[%clk 0:00:11.5]} 43... Re1+ {[%clk 0:00:52.6]} 44. Kf2 {[%clk 0:00:11.5]}
44... Rf1+ {[%clk 0:00:52.8]} 45. Ke3 {[%clk 0:00:11.4]} 45... Rxf5 {[%clk
0:00:53.7]} 46. Be4 {[%clk 0:00:10.1]} 46... a3 {[%clk 0:00:53.6]} 47. Bxf5
{[%clk 0:00:08.7]} 47... a2 {[%clk 0:00:53.7]} 0-1

[Event "*** Titled Tuesday Blitz"]
[Site "Chess.com"]
[Date "2020.11.24"]
[Round "11"]
[White "ajedrezhoy"]
[Black "Ladislav1969"]
[Result "0-1"]
[WhiteElo "2219"]
[BlackElo "2334"]
[TimeControl "180+1"]
[EndTime "12:24:37 PST"]
[Termination "Ladislav1969 won on time"]

1. b3 {[%clk 0:02:58.5]} 1... Nf6 {[%clk 0:02:59.8]} 2. Bb2 {[%clk 0:02:57.7]}
2... g6 {[%clk 0:03:00.2]} 3. g3 {[%clk 0:02:57.7]} 3... Bg7 {[%clk 0:03:00.4]}
4. Bg2 {[%clk 0:02:57.8]} 4... O-O {[%clk 0:02:59.1]} 5. Nf3 {[%clk 0:02:57.6]}
5... d5 {[%clk 0:02:59.4]} 6. c4 {[%clk 0:02:56.3]} 6... c5 {[%clk 0:02:59.1]}
7. cxd5 {[%clk 0:02:55.2]} 7... Nxd5 {[%clk 0:02:54.6]} 8. Bxg7 {[%clk
0:02:53.7]} 8... Kxg7 {[%clk 0:02:55]} 9. Qc1 {[%clk 0:02:49.8]} 9... b6 {[%clk
0:02:43.6]} 10. Qb2+ {[%clk 0:02:32.3]} 10... f6 {[%clk 0:02:40.8]} 11. d4
{[%clk 0:02:29.3]} 11... Na6 {[%clk 0:02:22.3]} 12. O-O {[%clk 0:02:17.9]} 12...
Bb7 {[%clk 0:02:19.4]} 13. Rd1 {[%clk 0:02:12.1]} 13... Qc7 {[%clk 0:02:11]} 14.
Na3 {[%clk 0:02:04.8]} 14... Rac8 {[%clk 0:02:01]} 15. Rac1 {[%clk 0:01:29.7]}
15... Qb8 {[%clk 0:01:57.8]} 16. dxc5 {[%clk 0:01:25.1]} 16... Nxc5 {[%clk
0:01:57.8]} 17. Nd4 {[%clk 0:01:07.2]} 17... Nc7 {[%clk 0:01:35.4]} 18. Bh3
{[%clk 0:01:02.8]} 18... Rcd8 {[%clk 0:01:20.9]} 19. b4 {[%clk 0:01:02.4]} 19...
N5a6 {[%clk 0:01:20.6]} 20. Qc3 {[%clk 0:00:27.8]} 20... Bd5 {[%clk 0:01:05.8]}
21. Rd3 {[%clk 0:00:22.1]} 21... Bxa2 {[%clk 0:00:59.6]} 22. Qb2 {[%clk
0:00:19]} 22... Bf7 {[%clk 0:00:57.2]} 23. Nc6 {[%clk 0:00:17.6]} 23... Rxd3
{[%clk 0:00:40.4]} 24. Nxb8 {[%clk 0:00:16.9]} 24... Rb3 {[%clk 0:00:39.5]} 25.
Qxb3 {[%clk 0:00:13]} 25... Bxb3 {[%clk 0:00:38.2]} 26. Nxa6 {[%clk 0:00:12.7]}
26... Nxa6 {[%clk 0:00:37.9]} 27. Nb5 {[%clk 0:00:10.7]} 27... Rd8 {[%clk
0:00:27.4]} 28. Nxa7 {[%clk 0:00:09.7]} 28... Nxb4 {[%clk 0:00:26.2]} 29. Rc7
{[%clk 0:00:06]} 29... Rd1+ {[%clk 0:00:22.4]} 30. Kg2 {[%clk 0:00:05.9]} 30...
Kf7 {[%clk 0:00:21.1]} 31. Nc8 {[%clk 0:00:04.7]} 31... Nd5 {[%clk 0:00:17.9]}
32. Ra7 {[%clk 0:00:02.1]} 32... Rd2 {[%clk 0:00:15.2]} 0-1

[Event "*** Titled Tuesday Blitz"]
[Site "Chess.com"]
[Date "2020.11.24"]
[Round "11"]
[White "Marina_Chess_Rus"]
[Black "cukin84"]
[Result "0-1"]
[WhiteElo "2263"]
[BlackElo "2166"]
[TimeControl "180+1"]
[EndTime "12:24:37 PST"]
[Termination "cukin84 won on time"]

1. d4 {[%clk 0:03:00.9]} 1... f5 {[%clk 0:02:59.3]} 2. c4 {[%clk 0:03:00.1]}
2... Nf6 {[%clk 0:02:59.5]} 3. Nc3 {[%clk 0:02:59.9]} 3... g6 {[%clk 0:02:59.7]}
4. g3 {[%clk 0:02:57.7]} 4... Bg7 {[%clk 0:02:59.9]} 5. Bg2 {[%clk 0:02:58.1]}
5... O-O {[%clk 0:02:59.8]} 6. Nf3 {[%clk 0:02:58.1]} 6... d6 {[%clk 0:03:00]}
7. O-O {[%clk 0:02:55.1]} 7... Qe8 {[%clk 0:02:59.8]} 8. d5 {[%clk 0:02:54.9]}
8... a5 {[%clk 0:02:59.1]} 9. Be3 {[%clk 0:02:47.6]} 9... Na6 {[%clk 0:02:53.8]}
10. Bd4 {[%clk 0:02:45]} 10... c5 {[%clk 0:02:51.7]} 11. Be3 {[%clk 0:02:38.5]}
11... Ng4 {[%clk 0:02:50.6]} 12. Bd2 {[%clk 0:02:37]} 12... h6 {[%clk
0:02:30.8]} 13. Rc1 {[%clk 0:02:27.2]} 13... Kh7 {[%clk 0:02:25.5]} 14. h3
{[%clk 0:02:12.2]} 14... Ne5 {[%clk 0:02:22.4]} 15. b3 {[%clk 0:02:12.2]} 15...
Nc7 {[%clk 0:02:18.1]} 16. Ne1 {[%clk 0:02:12]} 16... g5 {[%clk 0:02:14.9]} 17.
f4 {[%clk 0:02:07.8]} 17... gxf4 {[%clk 0:02:12.3]} 18. gxf4 {[%clk 0:02:00.8]}
18... Ng6 {[%clk 0:02:10.4]} 19. Nf3 {[%clk 0:01:55]} 19... Rg8 {[%clk
0:02:07.3]} 20. Kh2 {[%clk 0:01:54.3]} 20... Qf7 {[%clk 0:02:07]} 21. Rg1 {[%clk
0:01:48.6]} 21... Bd7 {[%clk 0:02:06.2]} 22. Qe1 {[%clk 0:01:48]} 22... Bf6
{[%clk 0:02:05.7]} 23. Qf2 {[%clk 0:01:46.5]} 23... b5 {[%clk 0:02:00.9]} 24.
Bh1 {[%clk 0:01:26.6]} 24... bxc4 {[%clk 0:02:00.1]} 25. bxc4 {[%clk 0:01:26]}
25... Rab8 {[%clk 0:01:58.7]} 26. Rb1 {[%clk 0:01:25.6]} 26... Rb4 {[%clk
0:01:56.9]} 27. Rxb4 {[%clk 0:00:57.1]} 27... axb4 {[%clk 0:01:56.2]} 28. Nd1
{[%clk 0:00:54.5]} 28... Ra8 {[%clk 0:01:52.2]} 29. h4 {[%clk 0:00:43.3]} 29...
Rxa2 {[%clk 0:01:45.2]} 30. Bc1 {[%clk 0:00:27.7]} 30... Ba4 {[%clk 0:01:34.6]}
31. Bg2 {[%clk 0:00:15.6]} 31... Bc2 {[%clk 0:01:28.6]} 32. h5 {[%clk
0:00:11.8]} 32... Nf8 {[%clk 0:01:26.9]} 33. Bh3 {[%clk 0:00:12]} 33... Bd3
{[%clk 0:01:23]} 34. Qg3 {[%clk 0:00:11.2]} 34... Rxe2+ {[%clk 0:01:20.2]} 35.
Kh1 {[%clk 0:00:11.8]} 35... Be4 {[%clk 0:01:10.2]} 36. Nf2 {[%clk 0:00:09.2]}
36... Qg7 {[%clk 0:00:57.1]} 37. Nxe4 {[%clk 0:00:08.4]} 37... fxe4 {[%clk
0:00:49.8]} 38. Bf5+ {[%clk 0:00:08.5]} 38... Kh8 {[%clk 0:00:49.6]} 39. Qh3
{[%clk 0:00:08.5]} 39... Qf7 {[%clk 0:00:45.7]} 40. Nh4 {[%clk 0:00:08.1]} 40...
Bxh4 {[%clk 0:00:42.9]} 41. Qxh4 {[%clk 0:00:07.9]} 41... Qxf5 {[%clk
0:00:42.4]} 42. Qg3 {[%clk 0:00:03.6]} 42... Qxh5+ {[%clk 0:00:41.9]} 0-1

[Event "*** Titled Tuesday Blitz"]
[Site "Chess.com"]
[Date "2020.11.24"]
[Round "11"]
[White "Arseniy_Nesterov"]
[Black "SpasKozhuharov"]
[Result "0-1"]
[WhiteElo "2793"]
[BlackElo "2691"]
[TimeControl "180+1"]
[EndTime "12:24:41 PST"]
[Termination "SpasKozhuharov won by resignation"]

1. d4 {[%clk 0:03:00.9]} 1... d5 {[%clk 0:02:56.8]} 2. c4 {[%clk 0:03:00.5]}
2... e6 {[%clk 0:02:54]} 3. Nf3 {[%clk 0:03:00.8]} 3... c6 {[%clk 0:02:54.4]} 4.
g3 {[%clk 0:02:58.6]} 4... Nf6 {[%clk 0:02:52.4]} 5. Bg2 {[%clk 0:02:55.8]} 5...
Nbd7 {[%clk 0:02:52.9]} 6. O-O {[%clk 0:02:54.4]} 6... Bd6 {[%clk 0:02:53]} 7.
Qc2 {[%clk 0:02:52.1]} 7... Ne4 {[%clk 0:02:51.7]} 8. Nc3 {[%clk 0:02:31.6]}
8... f5 {[%clk 0:02:51.1]} 9. Nxe4 {[%clk 0:02:27.6]} 9... fxe4 {[%clk
0:02:49.7]} 10. Ng5 {[%clk 0:02:25.6]} 10... Nf6 {[%clk 0:02:47.3]} 11. f3
{[%clk 0:02:25.7]} 11... exf3 {[%clk 0:02:37.1]} 12. Rxf3 {[%clk 0:02:13.8]}
12... Qe7 {[%clk 0:02:24.4]} 13. Bf4 {[%clk 0:02:10]} 13... Bxf4 {[%clk
0:02:16]} 14. Rxf4 {[%clk 0:02:09.8]} 14... e5 {[%clk 0:02:05.9]} 15. dxe5
{[%clk 0:02:02.6]} 15... Qxe5 {[%clk 0:02:06.8]} 16. h4 {[%clk 0:02:00.2]} 16...
Qe3+ {[%clk 0:01:52.7]} 17. Kh2 {[%clk 0:01:39]} 17... Ng4+ {[%clk 0:01:52.1]}
18. Rxg4 {[%clk 0:01:30.2]} 18... Bxg4 {[%clk 0:01:53]} 19. cxd5 {[%clk
0:01:23.4]} 19... cxd5 {[%clk 0:01:52.6]} 20. Bxd5 {[%clk 0:00:36.2]} 20... Rc8
{[%clk 0:01:41]} 21. Qa4+ {[%clk 0:00:35.4]} 21... Bd7 {[%clk 0:01:40.3]} 22.
Bf7+ {[%clk 0:00:31.2]} 22... Kd8 {[%clk 0:01:33.9]} 23. Rd1 {[%clk 0:00:12.2]}
23... Qxe2+ {[%clk 0:01:11.7]} 24. Kh1 {[%clk 0:00:12.3]} 24... b5 {[%clk
0:01:08.7]} 25. Qd4 {[%clk 0:00:10.7]} 25... Rc7 {[%clk 0:00:43.3]} 26. Ne6+
{[%clk 0:00:10.1]} 26... Kc8 {[%clk 0:00:43.8]} 27. Nxc7 {[%clk 0:00:09.3]}
27... Rd8 {[%clk 0:00:33.2]} 28. Nd5 {[%clk 0:00:04.8]} 28... Bc6 {[%clk
0:00:27.9]} 29. Rc1 {[%clk 0:00:02.8]} 29... Kb7 {[%clk 0:00:22.7]} 30. Rxc6
{[%clk 0:00:01.4]} 30... Qf1+ {[%clk 0:00:19.5]} 31. Kh2 {[%clk 0:00:01.5]}
31... Qxf7 {[%clk 0:00:20.4]} 32. Rc7+ {[%clk 0:00:01.4]} 32... Qxc7 {[%clk
0:00:19.6]} 33. Qe4 {[%clk 0:00:02.2]} 33... Qc6 {[%clk 0:00:19.7]} 34. Qe7+
{[%clk 0:00:02.8]} 34... Rd7 {[%clk 0:00:20.1]} 35. Nf4 {[%clk 0:00:03.4]} 35...
Rxe7 {[%clk 0:00:20]} 0-1

[Event "*** Titled Tuesday Blitz"]
[Site "Chess.com"]
[Date "2020.11.24"]
[Round "11"]
[White "ARTHURMOTIVATOR"]
[Black "amatatanav"]
[Result "0-1"]
[WhiteElo "2271"]
[BlackElo "2386"]
[TimeControl "180+1"]
[EndTime "12:24:43 PST"]
[Termination "amatatanav won by resignation"]

1. e4 {[%clk 0:03:00.9]} 1... c5 {[%clk 0:02:59.7]} 2. b3 {[%clk 0:02:56.9]}
2... g6 {[%clk 0:02:57.2]} 3. Bb2 {[%clk 0:02:55.3]} 3... Nf6 {[%clk 0:02:53.6]}
4. e5 {[%clk 0:02:55.3]} 4... Nd5 {[%clk 0:02:53.3]} 5. Nf3 {[%clk 0:02:54.2]}
5... Bg7 {[%clk 0:02:48.5]} 6. d4 {[%clk 0:02:52.6]} 6... Qa5+ {[%clk
0:02:25.8]} 7. c3 {[%clk 0:02:50.9]} 7... cxd4 {[%clk 0:02:21]} 8. Qxd4 {[%clk
0:02:48.5]} 8... Nc6 {[%clk 0:02:13.4]} 9. Qe4 {[%clk 0:02:45.5]} 9... f5 {[%clk
0:02:01.4]} 10. exf6 {[%clk 0:02:41.9]} 10... Nxf6 {[%clk 0:01:53.7]} 11. Qc2
{[%clk 0:02:40.5]} 11... e5 {[%clk 0:01:28.4]} 12. Nbd2 {[%clk 0:02:37.2]} 12...
d5 {[%clk 0:01:26.5]} 13. b4 {[%clk 0:02:22]} 13... Qc7 {[%clk 0:01:20.4]} 14.
b5 {[%clk 0:02:19.6]} 14... Ne7 {[%clk 0:00:46]} 15. c4 {[%clk 0:02:07.2]} 15...
d4 {[%clk 0:00:36.1]} 16. Bd3 {[%clk 0:02:02.6]} 16... Bf5 {[%clk 0:00:24.6]}
17. O-O {[%clk 0:01:58.3]} 17... e4 {[%clk 0:00:17.3]} 18. Nxe4 {[%clk
0:01:54.2]} 18... Nxe4 {[%clk 0:00:18]} 19. Bxe4 {[%clk 0:01:53.9]} 19... d3
{[%clk 0:00:17.4]} 20. Bxd3 {[%clk 0:01:44]} 20... Bxd3 {[%clk 0:00:18.3]} 21.
Bxg7 {[%clk 0:01:05.1]} 21... Bxc2 {[%clk 0:00:17.9]} 22. Bxh8 {[%clk
0:01:05.8]} 22... O-O-O {[%clk 0:00:15.2]} 23. Rfe1 {[%clk 0:01:05.4]} 23...
Rxh8 {[%clk 0:00:14.5]} 24. Rac1 {[%clk 0:01:03.9]} 24... Bf5 {[%clk 0:00:14.4]}
25. Nd4 {[%clk 0:01:04.8]} 25... Rd8 {[%clk 0:00:13.5]} 26. Nb3 {[%clk
0:01:03.9]} 26... b6 {[%clk 0:00:13.1]} 27. c5 {[%clk 0:01:04]} 27... Kb8 {[%clk
0:00:09]} 28. cxb6 {[%clk 0:01:04.2]} 28... Qd6 {[%clk 0:00:09.1]} 29. bxa7+
{[%clk 0:01:03.7]} 29... Kxa7 {[%clk 0:00:10]} 30. a4 {[%clk 0:01:02]} 30... Qb4
{[%clk 0:00:09.9]} 31. Nc5 {[%clk 0:01:01]} 31... Nd5 {[%clk 0:00:07.9]} 32. h3
{[%clk 0:00:59.6]} 32... Nc3 {[%clk 0:00:07.7]} 33. Re7+ {[%clk 0:00:56.5]}
33... Kb6 {[%clk 0:00:06.4]} 34. a5+ {[%clk 0:00:53.7]} 34... Kxc5 {[%clk
0:00:05.9]} 35. Rc7+ {[%clk 0:00:53.3]} 35... Kd4 {[%clk 0:00:05.1]} 36. b6
{[%clk 0:00:52.9]} 36... Ne2+ {[%clk 0:00:04.7]} 37. Kh2 {[%clk 0:00:53.3]}
37... Nxc1 {[%clk 0:00:05.4]} 38. Rxc1 {[%clk 0:00:52.7]} 38... Qd6+ {[%clk
0:00:04.9]} 39. g3 {[%clk 0:00:51.6]} 39... Bd3 {[%clk 0:00:04.6]} 40. Rd1
{[%clk 0:00:51.5]} 40... Qd5 {[%clk 0:00:04.1]} 41. b7 {[%clk 0:00:51.3]} 41...
Qxb7 {[%clk 0:00:04]} 42. h4 {[%clk 0:00:50.9]} 42... Qa6 {[%clk 0:00:04.4]} 43.
Rd2 {[%clk 0:00:51.1]} 43... Qxa5 {[%clk 0:00:04.8]} 44. Rd1 {[%clk 0:00:51.4]}
44... Qd5 {[%clk 0:00:05.4]} 45. Rd2 {[%clk 0:00:51.3]} 45... Qf3 {[%clk
0:00:05.8]} 46. Kg1 {[%clk 0:00:50.2]} 46... Re8 {[%clk 0:00:06.3]} 47. Kh2
{[%clk 0:00:49]} 47... Re1 {[%clk 0:00:06.8]} 0-1

[Event "*** Titled Tuesday Blitz"]
[Site "Chess.com"]
[Date "2020.11.24"]
[Round "11"]
[White "AldokhinIvan"]
[Black "elohunter1999"]
[Result "1-0"]
[WhiteElo "2509"]
[BlackElo "2556"]
[TimeControl "180+1"]
[EndTime "12:24:44 PST"]
[Termination "AldokhinIvan won on time"]

1. e4 {[%clk 0:03:00.8]} 1... c5 {[%clk 0:02:59.6]} 2. Nf3 {[%clk 0:03:01.4]}
2... g6 {[%clk 0:02:59]} 3. d4 {[%clk 0:03:02.3]} 3... cxd4 {[%clk 0:02:59.9]}
4. Nxd4 {[%clk 0:03:02.9]} 4... Nc6 {[%clk 0:02:58.7]} 5. Nc3 {[%clk 0:03:03.8]}
5... Bg7 {[%clk 0:02:57.4]} 6. Be3 {[%clk 0:03:04.2]} 6... Nf6 {[%clk
0:02:57.6]} 7. Bc4 {[%clk 0:03:03.4]} 7... O-O {[%clk 0:02:57.6]} 8. Bb3 {[%clk
0:03:03.9]} 8... d6 {[%clk 0:02:57.2]} 9. h3 {[%clk 0:03:02.5]} 9... Bd7 {[%clk
0:02:47.7]} 10. O-O {[%clk 0:03:02.7]} 10... Na5 {[%clk 0:02:47.6]} 11. Qd3
{[%clk 0:02:49.4]} 11... a6 {[%clk 0:02:40.1]} 12. Rae1 {[%clk 0:02:47]} 12...
Nxb3 {[%clk 0:02:37.6]} 13. axb3 {[%clk 0:02:46.6]} 13... b5 {[%clk 0:02:36]}
14. Bg5 {[%clk 0:02:42.2]} 14... Rc8 {[%clk 0:02:29]} 15. Nd5 {[%clk 0:02:42]}
15... Nxd5 {[%clk 0:01:57]} 16. exd5 {[%clk 0:02:40.4]} 16... Re8 {[%clk
0:01:56.5]} 17. Re4 {[%clk 0:02:14.5]} 17... Qb6 {[%clk 0:01:50.3]} 18. c3
{[%clk 0:02:01.2]} 18... Rc5 {[%clk 0:01:33.4]} 19. c4 {[%clk 0:01:39.8]} 19...
bxc4 {[%clk 0:01:32.7]} 20. bxc4 {[%clk 0:01:38.6]} 20... Qxb2 {[%clk 0:01:23]}
21. Rb1 {[%clk 0:01:13.3]} 21... Qa2 {[%clk 0:01:19.5]} 22. Nb3 {[%clk
0:01:13.1]} 22... Bf5 {[%clk 0:01:07.8]} 23. Nxc5 {[%clk 0:01:12]} 23... dxc5
{[%clk 0:01:07.8]} 24. Rxe7 {[%clk 0:00:16.1]} 24... Rxe7 {[%clk 0:00:59.4]} 25.
Rb8+ {[%clk 0:00:14.9]} 25... Bf8 {[%clk 0:00:57.1]} 26. Bh6 {[%clk 0:00:12.7]}
26... Qa1+ {[%clk 0:00:34.4]} 27. Kh2 {[%clk 0:00:06.3]} 27... Qe5+ {[%clk
0:00:12.5]} 28. Qg3 {[%clk 0:00:06.2]} 28... Bc8 {[%clk 0:00:02.1]} 29. Qxe5
{[%clk 0:00:05.3]} 1-0